[Event "SVK ECo-C Extraliga 2021-22"]
[Site "Slovakia"]
[Date "2022.05.07"]
[Round "7.8"]
[White "Danada, Tomas"]
[Black "Gajdosik, Andrej"]
[Result "1-0"]
[ECO "A05"]
[WhiteElo "2302"]
[BlackElo "2023"]
[Annotator "TA"]
[PlyCount "129"]
[EventDate "2021.10.21"]
[EventType "team-tourn"]
[EventCountry "SVK"]
[SourceTitle "playchess.com"]
[Source "ChessBase"]
[SourceQuality "1"]
[TimeControl "40/5400+30:1800+30"]

{[%evp 16,129,69,70,70,72,53,62,107,74,121,90,85,75,125,69,56,0,0,0,0,0,55,0,0,0,0,0,0,0,0,0,61,59,52,16,160,178,176,142,226,179,197,0,102,47,43,35,119,118,135,119,141,125,131,133,156,142,164,143,289,265,477,475,540,585,732,606,601,532,531,471,489,479,539,518,535,381,360,0,0,0,0,0,0,0,0,0,29981,29982,29982,29983,29983,29984,29983,29984,29984,29981,29974,1679,29977,29977,29982,29983,29983,29984,29978,29983,29987,29988,29993,29994,29994,29995,29995,29996]} 1. Nf3 {[%emt 0:00:07]} Nf6 {[%emt 0:00:50]} 2. c4 {[%emt 0:00:28]} g6 {[%emt 0:00:48]} 3. Nc3 {[%emt 0:00:07]} Bg7 {[%emt 0:00:05]} 4. e4 {[%emt 0:00:16]} d6 {[%emt 0:00:11]} 5. d4 {[%emt 0:00:04]} Bg4 {[%emt 0:00:36]} 6. Be3 {[%emt 0:00:43]} Nbd7 {[%emt 0:00:23]} 7. Be2 {[%emt 0:01:28]} c6 {[%emt 0:00:45]} 8. O-O {[%emt 0:01:04]} O-O {[%emt 0:01:37]} 9. h3 {[%emt 0:00:40]} Bxf3 {[%emt 0:00:10] E91: King's Indian: Classical: 6 Be2, unusual replies including 6...c5 and 6...Bg4.} 10. Bxf3 {[%emt 0:00:03]} e5 {[%emt 0:00:22]} 11. d5 {[%emt 0:00:19]} c5 {[%emt 0:04:24] White is slightly better.} 12. a3 {[%emt 0:03:59]} a6 {[%emt 0:05:44]} (12... Ne8 $142) 13. b4 {[%emt 0:01:53] [#]} Rc8 $146 {[%emt 0:05:13]} ({Predecessor:} 13... b6 14. Qc2 Qc7 15. Be2 Ne8 16. Bd3 Nef6 17. b5 a5 18. Rae1 Nh5 19. g3 Rae8 {1-0 (35) Schueppen,H (2407)-Scaramuzzo,G (2012) ICCF email 2017}) 14. Be2 {[%emt 0:00:45]} b5 {[%emt 0:07:49]} (14... Ne8 $142) 15. g4 {[%emt 0:04:23]} ({Don't play} 15. cxb5 $6 cxb4 16. Nb1 Nxe4 $11) (15. Qc2 $16) 15... bxc4 $14 {[%emt 0:04:16]} 16. g5 {[%emt 0:00:51]} (16. Qa4 $14) 16... Ne8 $1 $11 {[%emt 0:01:55]} 17. Bg4 {[%emt 0:02:57]} Rb8 {[%emt 0:12:09]} 18. Qa4 {[%emt 0:04:49]} cxb4 {[%emt 0:12:33]} ({Better is} 18... f5 $1 $11 19. gxf6 Ndxf6 20. Be6+ Kh8) 19. axb4 {[%emt 0:00:12]} (19. Qxd7 $14 bxc3 20. Qxd8 Rxd8 21. Rac1) 19... f5 {[%emt 0:00:20]} 20. gxf6 $1 {[%emt 0:00:33]} Ndxf6 {[%emt 0:00:22]} 21. Be6+ {[%emt 0:01:18]} Kh8 {[%emt 0:00:08] Hoping for ...Nh5.} 22. Qxa6 {[%emt 0:07:21]} Rxb4 {[%emt 0:02:48]} 23. Qc6 {[%emt 0:03:56]} Nc7 {[%emt 0:11:54] Against Ra8} (23... Nh5 $11) 24. Ra7 $14 {[%emt 0:03:28]} Nfe8 {[%emt 0:02:13]} ({Less strong is} 24... Nxe6 25. dxe6 Re8 26. Nd5 $16) 25. Kg2 {[%emt 0:03:11]} Qf6 {[%emt 0:11:13]} (25... Rb2 $11 {keeps the balance.}) 26. Rxc7 $16 {[%emt 0:01:20] Really sharp! 0x0.0020473dc373dp-1022s more active pieces.} Nxc7 {[%emt 0:00:12]} 27. Qxc7 {[%emt 0:00:04]} Qf3+ {[%emt 0:00:37]} (27... Rb3 $2 28. Qxc4 Rfb8 29. Ra1) (27... Rb2 $16) 28. Kh2 {[%emt 0:00:02]} Rb2 {[%emt 0:01:35] Threatens to win with ...Qxe3.} 29. Qa7 {[%emt 0:02:50]} (29. Kg1 $1 $18) 29... Rb3 {[%emt 0:03:00]} (29... h5 $1 $11) 30. Bg4 {[%emt 0:01:49]} ({White should try} 30. Qa1 $1 $16) 30... Qf6 $1 $14 {[%emt 0:00:11]} 31. Qa1 {[%emt 0:01:38]} Rfb8 {[%emt 0:02:55]} ({Black should play} 31... Qh4 $1 $14) 32. Qc1 {[%emt 0:07:22]} Rb2 {[%emt 0:01:46]} 33. Nd1 $36 {[%emt 0:00:49][%mdl 2048] Black is under strong pressure.} R2b4 {[%emt 0:01:14]} 34. Bd2 {[%emt 0:05:03]} c3 {[%emt 0:02:08]} 35. Nxc3 {[%emt 0:00:35][%cal Bd1c3,Bc3b5,Bb5d6,Bd6c4][%mdl 32]} Rc4 {[%emt 0:00:30]} 36. Bg5 {[%emt 0:02:45]} Qf7 {[%emt 0:01:17]} 37. Qa3 {[%emt 0:00:33]} Qc7 {[%emt 0:00:39] [#]} (37... Rcb4 $16 38. Kg1 Qf8) 38. Rb1 $1 $18 {[%emt 0:06:47]} Rf8 {[%emt 0:02:20]} (38... Rxb1 39. Nxb1 h6) (38... h6 39. Be3) 39. Nb5 $1 {[%emt 0:01:40][%csl LRc7,LRd6]} Qb6 {[%emt 0:01:58]} 40. Be3 {[%emt 0:00:12]} Qb7 {[%emt 0:00:20]} 41. Qd3 {[%emt 0:31:44] Inhibits Rc2.} Ra4 {[%emt 0:01:37]} 42. Nxd6 {[%emt 0:00:00]} Qe7 {[%emt 0:03:09]} 43. Qb3 {[%emt 0:00:00]} Ra6 {[%emt 0:03:31]} 44. Nc4 {[%emt 0:00:00]} h5 {[%emt 0:02:17]} 45. Be6 {[%emt 0:00:00]} Qh4 {[%emt 0:03:16]} 46. Nd2 {[%emt 0:00:00]} Rxf2+ {[%emt 0:01:18]} 47. Bxf2 $2 {[%emt 0:00:00]} (47. Kh1 $1 $18) 47... Qxf2+ $11 {[%emt 0:00:05]} 48. Kh1 {[%emt 0:00:00]} Qxd2 {[%emt 0:00:12]} 49. Qg3 {[%emt 0:00:00]} Qc2 {[%emt 0:04:44][%csl LRb1,LRe4]} 50. Rb8+ {[%emt 0:02:10]} Kh7 {[%emt 0:00:10]} 51. Bg8+ {[%emt 0:00:04]} Kh6 $2 {[%emt 0:00:40][%mdl 8192]} (51... Kh8 $11 52. Be6+ Kh7 53. Bg8+ Kh8 54. Be6+) 52. Qe3+ {[%emt 0:00:06]} g5 {[%emt 0:00:04]} 53. Rb6+ {[%emt 0:00:03]} Bf6 {[%emt 0:01:55]} 54. Rxa6 {[%emt 0:00:09]} Qb1+ {[%emt 0:00:10]} 55. Kg2 {[%emt 0:00:39]} Qc2+ {[%emt 0:00:09]} 56. Kf3 {[%emt 0:01:41]} Qd1+ {[%emt 0:00:14]} 57. Qe2 {[%emt 0:01:18]} (57. Kf2 $142 Kg6 58. Bh7+ $1 {[%mdl 512]} Kf7 59. Ra7+ Be7 60. Qc3 g4 61. Bg8+ $1 {[%mdl 512]} Kg6 62. Rxe7) 57... g4+ {[%emt 0:00:54]} 58. hxg4 {[%emt 0:00:29] White mates.} hxg4+ {[%emt 0:00:14]} 59. Kf2 {[%emt 0:00:14]} g3+ {[%emt 0:00:36]} 60. Kf3 {[%emt 0:00:06]} Qh1+ {[%emt 0:01:30]} 61. Qg2 {[%emt 0:05:16]} Qd1+ {[%emt 0:01:02]} 62. Kxg3 {[%emt 0:00:17]} Qd3+ {[%emt 0:01:04] [#]} 63. Kg4 $1 {[%emt 0:00:11]} Qd1+ {[%emt 0:01:51]} 64. Kf5 {[%emt 0:01:33][%csl Gf5][%cal Rg2g6]} Qg4+ {[%emt 0:00:48]} 65. Kxg4 {[%emt 0:00:29] Weighted Error Value: White=0.35/Black=0.44} 1-0

[Event "SVK ECo-C Extraliga 2021-22"]
[Site "Slovakia"]
[Date "2022.05.07"]
[Round "7.8"]
[White "Holly, Andrej"]
[Black "Zpevak, Pavel"]
[Result "0-1"]
[ECO "A15"]
[WhiteElo "2214"]
[BlackElo "2373"]
[Annotator "TA"]
[PlyCount "87"]
[EventDate "2021.10.21"]
[EventType "team-tourn"]
[EventCountry "SVK"]
[SourceTitle "playchess.com"]
[Source "ChessBase"]
[SourceQuality "1"]
[TimeControl "40/5400+30:1800+30"]

{[%evp 17,87,0,0,0,0,0,0,0,8,0,10,-40,-23,-54,-33,-34,-19,-47,-22,-16,0,-8,-22,-46,-44,-69,0,0,8,11,63,-105,-98,-110,-77,-134,-110,-379,-377,-375,-357,-414,-217,-218,-227,-264,-195,-202,-195,-386,-352,-487,-486,-480,-477,-459,-445,-723,-711,-614,-724,-705,-721,-657,-645,-613,-601,-29969,-29969,-29970,-29971,-29981]} 1. c4 {[%emt 0:00:19]} Nf6 {[%emt 0:00:22]} 2. g3 {[%emt 0:00:06]} c6 {[%emt 0:01:13]} 3. Bg2 {[%emt 0:01:01]} d5 {[%emt 0:00:29]} 4. Nf3 {[%emt 0:03:05]} Bf5 {[%emt 0:01:29]} 5. O-O {[%emt 0:03:35]} e6 {[%emt 0:01:30]} 6. b3 {[%emt 0:02:10]} h6 {[%emt 0:03:23]} 7. Bb2 {[%emt 0:02:52]} Nbd7 {[%emt 0:01:29]} 8. d3 {[%emt 0:01:03]} Bc5 {[%emt 0:00:56]} 9. Nc3 {[%emt 0:06:10]} O-O {[%emt 0:01:18]} 10. e3 {[%emt 0:03:25] A12: English Opening: 1...c6 with b3 by White.} Qe7 {[%emt 0:08:59]} 11. Qe2 {[%emt 0:01:03]} Bh7 {[%emt 0:03:44] [#]} 12. Nd2 $146 {[%emt 0:08:54] The position is equal.} ({Predecessor:} 12. Rad1 Rfd8 13. h3 Rab8 14. Kh2 Re8 15. d4 Bd6 16. Nd2 Bc7 17. f4 Ba5 18. a3 Bxc3 19. Bxc3 {1-0 (36) Ovetchkin,R (2540)-Cheremnova,T (2163) Belgorod 2009}) 12... Ba3 {[%emt 0:05:00]} 13. Bxa3 {[%emt 0:02:42]} Qxa3 {[%emt 0:00:12]} 14. e4 {[%emt 0:04:13]} ({White should play} 14. d4 $11) 14... dxe4 (14... Nc5 {looks sharper.} 15. d4 Qb2 16. dxc5 Qxc3 17. exd5 exd5 18. cxd5 Rfe8) 15. dxe4 {[%emt 0:00:29]} Rfd8 {[%emt 0:18:49]} 16. Rfd1 {[%emt 0:06:25]} Qa5 {[%emt 0:04:57]} 17. Na4 {[%emt 0:07:03]} e5 {[%emt 0:11:18]} (17... Bg6 $5 {[%cal Rb7b5]}) 18. f3 {[%emt 0:08:17]} b5 {[%emt 0:12:40]} 19. Nb2 {[%emt 0:01:55]} Nc5 $1 {[%emt 0:01:18] Prevents Nd3.} 20. Bh3 {[%emt 0:02:16]} Rd4 {[%emt 0:05:33]} 21. Nf1 {[%emt 0:01:24]} Rad8 {[%emt 0:00:52] Black is much more active.} ({Better is} 21... Rxd1 $1 $15 22. Rxd1 Qxa2 23. cxb5 cxb5) 22. Rxd4 {[%emt 0:02:19]} Rxd4 {[%emt 0:03:36]} 23. cxb5 {[%emt 0:02:55]} Nxb3 {[%emt 0:07:37]} (23... cxb5 $11 24. Rc1 Qb6) 24. axb3 $2 {[%emt 0:08:58]} Qxa1 $17 {[%emt 0:00:12]} 25. bxc6 {[%emt 0:00:03] [#] Black must now prevent c7.} Qa5 {[%emt 0:00:56]} 26. Qc2 {[%emt 0:00:11]} (26. Qe3 $142) 26... Qc7 {[%emt 0:00:51]} 27. Nd3 $2 {[%emt 0:01:15][%mdl 8192] [#] White does not recover from this.} (27. Qc3 $17) 27... Nxe4 $1 $19 {[%emt 0:03:26][%mdl 512]} 28. Nxe5 {[%emt 0:02:22]} Rd5 {[%emt 0:00:40] Hoping for ...Ng5.} (28... Qxe5 29. c7 Qe8 30. c8=Q $18) 29. Nxf7 {[%emt 0:03:42]} Kxf7 {[%emt 0:01:18]} (29... Ng5 $142 30. Nxh6+ Kf8) 30. fxe4 {[%emt 0:06:01] aiming for Qf2+.} Qb6+ {[%emt 0:00:23]} 31. Kg2 {[%emt 0:02:01]} Qc5 {[%emt 0:00:26]} 32. Qe2 {[%emt 0:04:41]} ({Of course not} 32. Qf2+ Qxf2+ 33. Kxf2 Rc5) 32... Re5 {[%emt 0:00:09]} (32... Rd1 $2 33. c7 Qxc7 34. Qf3+ Ke7 35. Qxd1 $18) 33. Qf3+ {[%emt 0:00:39]} (33. Nd2 Qxc6 34. Kf3) 33... Ke7 {[%emt 0:00:27]} ({Not} 33... Kg8 $2 34. Nd2 Qxc6 35. Kf2 $19) 34. Bf5 {[%emt 0:01:06]} Bxf5 {[%emt 0:00:26]} 35. exf5 {[%emt 0:00:02]} Rxf5 {[%emt 0:00:21][%mdl 4096] Endgame ( -> ...Qc2+). KQR-KQN} ({Worse is} 35... Re1 36. Kh3 $15) 36. Qe4+ {[%emt 0:02:00]} Re5 {[%emt 0:00:26]} 37. Qg6 {[%emt 0:01:19]} (37. Qf3 $142 Qc2+ 38. Kg1) 37... Qd5+ {[%emt 0:00:23]} 38. Kg1 {[%emt 0:00:27]} Qd4+ {[%emt 0:00:18]} 39. Kg2 {[%emt 0:00:15]} Qe4+ {[%emt 0:00:32]} 40. Qxe4 {[%emt 0:00:05]} Rxe4 {[%emt 0:00:09]} 41. Kf3 {[%emt 0:31:07]} Rb4 {[%emt 0:30:12]} 42. Ne3 {[%emt 0:00:17] Threatens to win with Nd5+.} Rxb3 {[%emt 0:00:21]} 43. Ke4 {[%emt 0:00:02] [#]} Rxe3+ $1 {[%emt 0:00:55][%mdl 512]} 44. Kd4 {Weighted Error Value: White=0.71/Black=0.14 (very precise)} (44. Kxe3 Kd6) 0-1

[Event "SVK ECo-C Extraliga 2021-22"]
[Site "Slovakia"]
[Date "2022.05.07"]
[Round "7.8"]
[White "Kardis, Benjamin"]
[Black "Zetocha, Adrian"]
[Result "1-0"]
[ECO "D01"]
[WhiteElo "1939"]
[BlackElo "2243"]
[Annotator "TA"]
[PlyCount "91"]
[EventDate "2021.10.21"]
[EventType "team-tourn"]
[EventCountry "SVK"]
[SourceTitle "playchess.com"]
[Source "ChessBase"]
[SourceQuality "1"]
[TimeControl "40/5400+30:1800+30"]

{[%evp 9,91,0,7,-119,-87,-92,-45,-68,-16,-70,-33,-100,-117,-163,-141,-152,-141,-168,-161,-176,-189,-189,-37,-138,-11,-54,-62,-60,-71,-64,-64,-66,-67,-164,-171,-133,-12,-39,16,14,15,16,23,25,95,16,16,12,14,14,87,81,82,83,335,162,165,78,81,79,100,75,89,101,104,90,124,55,75,76,1300,1294,1222,1214,1211,1188,1212,1205,843,814,29971,5239,29990,29986]} 1. d4 {[%emt 0:00:26]} Nf6 {[%emt 0:00:35]} 2. Nc3 {[%emt 0:00:18]} d5 {[%emt 0:00:47]} 3. Bg5 {[%emt 0:00:17]} c5 {[%emt 0:02:38]} 4. Bxf6 {[%emt 0:06:47]} gxf6 {[%emt 0:00:38]} 5. e4 {[%emt 0:01:13]} dxe4 {[%emt 0:03:55]} 6. d5 {[%emt 0:05:05] D01: Veresov Opening.} (6. dxc5 $11 Nc6 7. Qxd8+ Kxd8 8. Nxe4) 6... f5 $17 {[%emt 0:02:24]} 7. f3 {[%emt 0:05:23]} exf3 {[%emt 0:10:40] [#]} (7... Qb6 $17 8. Rb1 Bg7) 8. Nxf3 $146 {[%emt 0:03:17] Black is slightly better.} ({Predecessor:} 8. Qxf3 Bg7 9. Bb5+ Nd7 10. Qxf5 a6 11. Bxd7+ Bxd7 12. Qf3 O-O 13. Nge2 Qb6 14. O-O Qxb2 {0-1 (29) Caceres,D (2128)-Beinoras,M (2402) Tromsoe 2014}) 8... Qb6 {[%emt 0:01:54]} (8... a6 $15) 9. Rb1 {[%emt 0:14:06]} (9. Bb5+ $11 Nd7 10. Qe2) 9... Bg7 {[%emt 0:04:32]} 10. Bd3 {[%emt 0:03:18]} (10. Bc4 $15) 10... O-O $1 {[%emt 0:13:36]} 11. Qd2 {[%emt 0:03:23]} (11. Nd2 $17 {might work better.}) 11... e5 {[%emt 0:01:56]} 12. Be2 {[%emt 0:09:21]} Rd8 {[%emt 0:27:42]} 13. O-O {[%emt 0:01:38]} Nc6 $1 {[%emt 0:02:46]} 14. Qg5 {[%emt 0:03:20]} Nd4 {[%emt 0:04:07]} 15. Bc4 {[%emt 0:02:54]} ({Don't blunder} 15. Nxe5 $2 f6 16. Qd2 fxe5 $19) 15... f6 $2 {[%emt 0:01:42]} ({Black should play} 15... Nxc2 $19 {And now ...h6 would win.} 16. Nxe5 Qf6 17. Qxf6 Bxf6) 16. Qh5 {[%emt 0:04:53]} (16. d6+ $1 $15 Kh8 17. Qh5 Qxd6 18. Nh4) 16... Qd6 {[%emt 0:03:51]} (16... Nxc2 17. d6+ Kh8 18. Nh4 $18) (16... Qb4 $17 17. Nd2 b5) 17. b3 {[%emt 0:15:34]} Bd7 {[%emt 0:01:08]} ({But not} 17... Nxc2 18. Nb5 Qf8 19. d6+ Kh8 20. Nh4 $11) 18. Nxd4 {[%emt 0:00:37]} cxd4 {[%emt 0:00:09]} 19. Nb5 {[%emt 0:01:56]} Bxb5 {[%emt 0:01:05]} 20. Bxb5 {[%emt 0:00:04]} Qc5 {[%emt 0:00:29]} (20... Qxd5 $2 21. Bc4 $18) 21. Bd3 {[%emt 0:02:05]} (21. a4 $1 $15) 21... e4 $19 {[%emt 0:00:36]} 22. b4 {[%emt 0:00:09]} Qb6 {[%emt 0:00:50]} (22... Qxd5 $17 23. Be2 Rac8) 23. Bc4 $11 {[%emt 0:00:13][%cal Bd3c4,Bc4b3,Bb3c2][%mdl 32]} Rac8 {[%emt 0:00:22]} (23... Kh8 $15) 24. Bb3 $1 {[%emt 0:00:50] Hoping for d6+.} d3+ {[%emt 0:00:38]} (24... Qxb4 $2 25. d6+ Rc4 26. Qxf5 $18) 25. Kh1 {[%emt 0:00:13]} dxc2 {[%emt 0:00:12]} 26. Rbc1 {[%emt 0:00:42] d6+ is the strong threat.} Qxb4 {[%emt 0:08:54] [#]} (26... Qd6 $11 {keeps the balance.}) 27. Qxf5 {[%emt 0:01:54]} ({Better is} 27. d6+ $1 $16 Kh8 28. Be6) 27... Qd4 {[%emt 0:02:17]} 28. Rxc2 {[%emt 0:01:23]} Rxc2 {[%emt 0:00:48]} 29. Bxc2 {[%emt 0:00:06]} Re8 {[%emt 0:02:47]} (29... e3 $11 {remains equal.}) 30. d6 {[%emt 0:02:58]} Qxd6 {[%emt 0:00:27]} 31. Bxe4 {[%emt 0:00:07]} b5 $2 {[%emt 0:01:02][%mdl 8192]} (31... Qd2 $16) 32. Qxh7+ {[%emt 0:01:57]} (32. Bc2 $142 h6 33. Qh7+ (33. Qxb5 Re5 $14) 33... Kf8 34. Bb3) 32... Kf8 $18 {[%emt 0:00:01] [#]} 33. Bg6 {[%emt 0:01:51]} (33. Bc2 $1 $18 {[%cal Rc2b3]}) 33... Re5 {[%emt 0:00:59]} 34. Qh3 {[%emt 0:00:22] White threatens Qc8+ and mate.} Qe6 {[%emt 0:00:24] Inhibits Qc8+.} 35. Qd3 {[%emt 0:01:27] White is more active.} Qd5 {[%emt 0:00:35] Inhibits Qd8+.} 36. Qa3+ {[%emt 0:01:48]} Qc5 {[%emt 0:00:03]} 37. Qa6 {[%emt 0:02:28]} Re7 {[%emt 0:00:52]} 38. Rb1 $40 {[%emt 0:00:37][%mdl 128] White is up to no good.} ({White should try} 38. Bd3 $16) 38... Re5 {[%emt 0:00:37]} 39. Qb7 {[%emt 0:00:21][%csl Gg6][%cal Rb7f7]} Qd5 {[%emt 0:00:30][%mdl 8192] Prevents Qf7+.} (39... Kg8 $16) 40. Qb8+ {[%emt 0:02:23]} Ke7 {[%emt 0:00:05]} 41. Qe8+ {[%emt 0:07:12]} Kd6 {[%emt 0:00:00]} 42. Qd8+ {[%emt 0:00:16]} Ke6 {[%emt 0:00:25]} 43. Qg8+ {[%emt 0:00:10]} Kd6 {[%emt 0:01:45]} 44. Qxg7 {[%emt 0:00:10] Black must now prevent Rc1.} Rg5 {[%emt 0:01:24]} 45. Qxf6+ {[%emt 0:00:30]} (45. Qf8+ $142 Kd7 46. Be8+ Kc7 47. Rc1+ Kb7 48. Qe7+ Ka6 49. Qxf6+ Ka5 50. Qc3+ Ka6 51. Qc8+ Ka5 52. Qc7+ Ka4 53. Rc4+ Qxc4 54. Qxc4+ Ka5 55. Qc3+ Ka4 56. Qc4+ Ka5 57. Qc3+ Ka4 58. Qe3) 45... Kc5 {[%emt 0:00:16] [#]} 46. Be4 $1 {[%emt 0:00:32] A wild game.  Weighted Error Value: White=0.34/Black=0.77} 1-0

[Event "SVK ECo-C Extraliga 2021-22"]
[Site "Slovakia"]
[Date "2022.05.08"]
[Round "7.8"]
[White "Striskova, Lucia"]
[Black "Krivan, Gregor"]
[Result "1-0"]
[ECO "B15"]
[WhiteElo "1923"]
[BlackElo "1576"]
[Annotator "TA"]
[PlyCount "43"]
[EventDate "2021.10.21"]
[EventType "team-tourn"]
[EventCountry "SVK"]
[SourceTitle "playchess.com"]
[Source "ChessBase"]
[SourceQuality "1"]
[TimeControl "40/5400+30:1800+30"]

{[%evp 14,43,32,29,29,11,37,34,40,30,31,40,46,40,72,43,303,297,314,311,294,295,325,293,289,290,489,208,490,363,668,566]} 1. e4 {[%emt 0:30:04]} c6 {[%emt 0:30:16]} 2. d4 {[%emt 0:00:08]} d5 {[%emt 0:00:40]} 3. Nc3 {[%emt 0:00:09]} dxe4 {[%emt 0:00:00]} 4. Nxe4 {[%emt 0:00:08]} Nf6 {[%emt 0:00:02]} 5. Nxf6+ {[%emt 0:00:31]} exf6 {[%emt 0:00:10]} 6. c3 {[%emt 0:00:18]} Bd6 {[%emt 0:00:40]} 7. Bd3 {[%emt 0:00:09]} O-O {[%emt 0:01:02]} 8. Qc2 {[%emt 0:00:35] Active counter play!} Re8+ {[%emt 0:02:16] B15: Caro-Kann: 3 Nc3: 3...g6 and 3...dxe4 4 Nxe4 Nf6 5 Nxf6+ exf6.} 9. Ne2 {[%emt 0:00:11]} h5 {[%emt 0:00:15]} (9... f5 $5) 10. O-O {[%emt 0:01:28]} Qc7 {[%emt 0:03:03] White is slightly better.} 11. h3 {[%emt 0:00:25]} Be6 {[%emt 0:00:30]} 12. Be3 {[%emt 0:01:48]} Nd7 {[%emt 0:01:23]} 13. c4 {[%emt 0:01:36][%cal Bc3c4,Bc4d5][%mdl 32] [#]} b6 $146 {[%emt 0:06:04]} ({Predecessor:} 13... Nf8 14. c5 Be7 15. Nf4 g6 16. Nxe6 Nxe6 17. Bc4 f5 18. Rfd1 Rad8 19. Rd3 Bf6 {0-1 (41) Tan,J (2466)-Hansen,T (2410) Chess.com INT 2018}) 14. Nc3 {[%emt 0:04:27] [#] d5 is the strong threat.} Bf8 $2 {[%emt 0:03:00][%mdl 8192] This move loses the game for Black.} (14... Nf8 $1 $14) 15. d5 $18 {[%emt 0:01:02]} cxd5 {[%emt 0:05:01]} 16. cxd5 {[%emt 0:00:06]} Bxh3 {[%emt 0:00:09]} 17. gxh3 {[%emt 0:00:10]} Rxe3 {[%emt 0:09:11]} 18. fxe3 {[%emt 0:00:15]} ({Not} 18. Bh7+ Kh8 19. d6 (19. fxe3 Qg3+ 20. Qg2 Qxe3+ 21. Kh1 Kxh7 $14) 19... Rxc3 20. dxc7 Rxc2 21. Bxc2 Rc8 $16) 18... Qg3+ {[%emt 0:01:08]} 19. Kh1 {[%emt 0:01:31] [#] Strongly threatening Bf5.} Ne5 $2 {[%emt 0:00:21]} (19... Qxh3+ 20. Qh2 Qxh2+ 21. Kxh2 g6) 20. Be4 {[%emt 0:03:14]} (20. Bf5 $142) 20... Rc8 $2 {[%emt 0:10:23]} (20... Qxh3+ {was called for.} 21. Qh2 Qxh2+ 22. Kxh2 Ng4+ 23. Kh3 Nxe3) 21. Qg2 {[%emt 0:01:40]} Qxe3 {[%emt 0:00:28]} (21... Qxg2+ 22. Bxg2 Nc4) 22. Rae1 {[%emt 0:01:29] Weighted Error Value: White=0.39/Black=1.09} 1-0